bitfinex-derivatives/quotes_SOLF0:USTF0_20250505
["timestamp","ask_amount","ask_price","bid_price","bid_amount"]
[1746413832256,6.9016,144.89,144.85,6.903]
[1746413832556,6.9016,144.89,144.86,6.9028]
[1746413835260,6.9016,144.89,144.85,6.9031]
[1746413836355,6.9019,144.88,144.85,6.9031]
[1746413839164,6.9019,144.88,144.84,31.3836]
[1746413842066,6.9024,144.87,144.84,31.3836]
[1746413842961,7.36419776,144.9,144.8,24.46]
[1746413843273,2.0163,144.89,144.8,24.46]
[1746413843454,6.9046,144.83,144.8,24.46]
[1746413845162,6.9046,144.83,144.8,31.3656]
[1746413854670,6.9036,144.85,144.81,6.9048]
[1746413854872,6.9036,144.85,144.8,24.46]
[1746413855771,6.9036,144.85,144.82,6.9045]
[1746413858375,6.9036,144.85,144.81,6.9052]
[1746413860673,6.9036,144.85,144.82,6.9047]
[1746413862474,6.9038,144.84,144.81,6.9051]
[1746413862873,26.5028,144.88,144.81,6.9051]
[1746413863076,6.9035,144.85,144.81,6.9051]
[1746413863676,6.9035,144.85,144.81,10.26851174]
[1746413863880,6.9038,144.84,144.81,10.26851174]
[1746413872474,6.9045,144.83,144.8,27.82341174]
[1746413872680,6.9045,144.83,144.8,31.3655]
[1746413873891,3.36341174,144.85,144.8,24.46]
[1746413874081,3.36341174,144.83,144.77,24.44]
[1746413874484,7.64941174,144.83,144.77,24.44]
[1746413875089,6.9064,144.79,144.77,24.44]
[1746413875395,3.36341174,144.79,144.74,24.44]
[1746413875790,6.9077,144.76,144.74,24.44]
[1746413875990,3.36341174,144.77,144.72,6.9091]
[1746413876490,6.9079,144.76,144.72,6.9091]
[1746413878892,6.9081,144.75,144.72,6.9091]
[1746413879097,6.9081,144.75,144.71,31.3299]
[1746413879284,4.2647,144.78,144.71,24.42]
[1746413879889,4.2647,144.78,144.68,548.8508]
[1746413880098,6.9087,144.74,144.7,6.9101]
[1746413880489,4.2647,144.78,144.69,24.42]
[1746413880695,6.9089,144.74,144.7,6.9104]
[1746413881391,6.9082,144.75,144.71,6.9099]
[1746413882299,6.9082,144.75,144.72,6.9094]
[1746413883995,6.9082,144.75,144.71,6.9098]
[1746413884998,24.42,144.76,144.69,24.42]
[1746413885798,24.42,144.76,144.66,24.42]
[1746413886102,6.9096,144.72,144.68,6.9111]
[1746413886902,6.9096,144.72,144.69,6.9109]
[1746413887094,6.909,144.73,144.69,6.9109]
[1746413889905,24.42,144.76,144.66,24.44]
[1746413889906,6.9086,144.74,144.7,6.9103]
[1746413890201,6.9086,144.74,144.66,24.44]
[1746413890404,6.9086,144.74,144.7,6.9101]
[1746413890601,6.9091,144.73,144.7,6.9101]
[1746413891902,6.9087,144.74,144.7,6.9101]
[1746413894805,6.909,144.73,144.7,6.9101]
[1746413895206,6.909,144.73,144.69,6.9108]
[1746413895402,6.9098,144.72,144.66,29.70238086]
[1746413896009,6.9098,144.72,144.68,6.9111]
[1746413896209,24.42,144.76,144.68,6.9111]
[1746413896609,6.9099,144.72,144.68,6.9111]
[1746413897311,6.9091,144.73,144.66,29.70238086]
[1746413897712,6.9091,144.73,144.69,6.9105]
[1746413898006,6.9091,144.73,144.66,29.70238086]
[1746413899211,6.9091,144.73,144.7,6.9104]
[1746413903414,6.9087,144.74,144.7,6.9104]
[1746413903914,6.9093,144.73,144.7,6.9104]
[1746413904113,6.9093,144.73,144.69,6.9108]
[1746413905020,6.9093,144.73,144.7,6.9104]
[1746413909920,6.9093,144.73,144.69,6.9107]
[1746413910114,6.9093,144.73,144.68,3.36936603]
[1746413911321,6.9093,144.73,144.7,6.9104]
[1746413911822,6.9088,144.74,144.71,6.9097]
[1746413912318,6.9087,144.74,144.7,6.9101]
[1746413913424,6.9087,144.74,144.71,6.91]
[1746413915024,10.27806603,144.74,144.71,6.91]
[1746413919229,6.9091,144.73,144.7,6.9104]
[1746413920522,6.9091,144.73,144.68,27.78936603]
[1746413921428,3.36936603,144.73,144.66,3.36936603]
[1746413922029,6.9099,144.72,144.68,6.9111]
[1746413922432,24.42,144.76,144.68,3.36936603]
[1746413922728,6.9091,144.73,144.7,6.9102]
[1746413923632,24.42,144.76,144.72,6.9094]
[1746413923835,24.42,144.76,144.7,3.36936603]
[1746413924231,6.9086,144.74,144.71,6.9097]
[1746413924634,24.42,144.76,144.71,6.9097]
[1746413924835,6.9083,144.75,144.72,10.27856603]
[1746413925334,6.9078,144.76,144.73,6.9087]
[1746413925526,5.48946603,144.78,144.72,3.36936603]
[1746413925931,24.42,144.79,144.74,10.27766603]
[1746413926231,3.36936603,144.8,144.74,10.27766603]
[1746413926435,6.907,144.78,144.74,10.27766603]
[1746413926836,6.907,144.78,144.75,6.9079]
[1746413927037,6.9062,144.79,144.75,6.9079]
[1746413927244,6.9062,144.79,144.76,3.36936603]
[1746413927533,6.9062,144.79,144.76,10.27696603]
[1746413927738,6.9062,144.79,144.76,6.9076]
[1746413929041,6.9062,144.79,144.75,6.9079]
[1746413929437,6.9067,144.78,144.73,29.67929731]
[1746413929637,6.9067,144.78,144.73,24.42]
[1746413930440,6.9067,144.78,144.74,6.9084]
[1746413932440,6.9072,144.77,144.73,31.3289]
[1746413932644,33.80359731,144.82,144.73,24.42]
[1746413934242,6.9079,144.76,144.73,24.42]
[1746413937548,6.9079,144.76,144.73,31.329]
[1746413938348,6.9073,144.77,144.73,31.329]
[1746413938650,33.80359731,144.82,144.73,31.329]
[1746413940249,6.9075,144.77,144.73,31.329]
[1746413940548,33.80359731,144.82,144.73,31.329]
[1746413941850,6.9074,144.77,144.73,31.329]
[1746413942042,6.9074,144.77,144.74,6.9085]
[1746413943751,6.9068,144.78,144.74,6.9085]
[1746413945054,6.9068,144.78,144.75,6.9079]
[1746413952672,6.9068,144.78,144.74,6.9084]
[1746413953570,6.9072,144.77,144.74,6.9084]
[1746413960074,6.9069,144.78,144.74,6.9084]
[1746413961274,6.9073,144.77,144.74,6.9084]
[1746413970778,6.9068,144.78,144.75,6.908]
[1746413973582,6.9068,144.78,144.74,6.9083]
[1746413975682,6.9068,144.78,144.75,6.9081]
[1746413976783,6.9071,144.77,144.74,6.9084]
[1746413978485,6.9068,144.78,144.75,6.9081]
[1746413982486,6.9073,144.77,144.73,34.69558598]
[1746413983086,6.9073,144.77,144.74,6.9083]
[1746413993996,6.9067,144.78,144.75,6.9079]
[1746413996096,6.9067,144.78,144.74,6.9083]
[1746414000100,6.9071,144.78,144.74,6.9083]
[1746414002702,6.9073,144.77,144.74,6.9083]
[1746414002996,3.36698598,144.76,144.68,27.72698598]
[1746414003200,6.9103,144.71,144.68,27.72698598]
[1746414003401,3.36698598,144.74,144.67,6.9115]
[1746414003797,6.9099,144.72,144.68,10.27808598]
[1746414003999,9.64348598,144.75,144.68,3.36698598]
[1746414004301,6.9096,144.72,144.68,3.36698598]
[1746414004503,6.9096,144.72,144.67,6.9116]
[1746414004702,6.9096,144.72,144.67,10.27858598]
[1746414005205,6.9096,144.72,144.68,6.9113]
[1746414005403,6.9096,144.72,144.67,3.36698598]
[1746414005899,6.9104,144.71,144.67,3.36698598]
[1746414006105,3.36698598,144.72,144.65,26.4639]
[1746414006295,3.36698598,144.72,144.67,3.36698598]
[1746414006501,3.36698598,144.72,144.67,10.27878598]
[1746414006799,3.36698598,144.73,144.67,3.36698598]
[1746414007408,6.9102,144.71,144.67,3.36698598]
[1746414007612,6.9102,144.71,144.67,10.27848598]
[1746414007908,6.9097,144.72,144.67,3.36698598]
[1746414008103,3.36698598,144.73,144.69,6.9109]
[1746414008305,3.36698598,144.73,144.67,3.36698598]
[1746414008506,6.9095,144.72,144.67,3.36698598]
[1746414008805,9.64348598,144.75,144.69,3.36698598]
[1746414009009,2.0756,144.75,144.71,3.36698598]
[1746414009208,24.36,144.76,144.71,3.36698598]
[1746414009508,3.36698598,144.77,144.72,6.9093]
[1746414010213,6.908,144.76,144.72,6.9093]
[1746414011011,6.9081,144.75,144.72,6.9093]
[1746414012508,6.9081,144.75,144.71,10.27678598]
[1746414012712,6.9086,144.74,144.71,3.36698598]
[1746414012914,3.36698598,144.75,144.7,24.36]
[1746414013816,6.9087,144.74,144.7,31.2704]
[1746414014013,3.36698598,144.75,144.7,31.2704]
[1746414015215,6.9091,144.73,144.7,31.2704]
[1746414017313,6.9087,144.74,144.7,31.2704]
[1746414018926,6.909,144.73,144.7,31.2704]
[1746414020027,6.9088,144.74,144.7,31.2704]
[1746414021929,3.36698598,144.75,144.7,24.36]
[1746414022532,27.72698598,144.75,144.7,27.72698598]
[1746414022826,24.36,144.75,144.7,27.72698598]
[1746414023628,6.9094,144.73,144.7,34.63728598]
[1746414026428,6.9094,144.73,144.7,27.72698598]
[1746414026930,6.9094,144.73,144.7,24.36]
[1746414027129,6.9096,144.72,144.7,24.36]
[1746414027531,6.9092,144.73,144.7,24.36]
[1746414028534,6.9096,144.72,144.7,24.36]
[1746414028727,27.72698598,144.75,144.65,2.1039]
[1746414028728,3.36698598,144.73,144.67,24.36]
[1746414029126,3.36698598,144.74,144.68,3.36698598]
[1746414029328,3.36698598,144.74,144.68,10.27828598]
[1746414029927,6.9098,144.72,144.68,10.27828598]
[1746414032535,27.72698598,144.75,144.68,3.36698598]
[1746414033233,6.9094,144.73,144.69,6.9108]
[1746414033535,6.9094,144.73,144.68,3.36698598]
[1746414034236,6.9094,144.73,144.7,6.9101]
[1746414035139,6.9094,144.73,144.68,3.36698598]
[1746414035140,6.9088,144.74,144.71,6.91]
[1746414035435,7.40828598,144.78,144.7,3.36698598]
[1746414035626,6.9085,144.75,144.72,6.9094]
[1746414035826,7.40828598,144.78,144.7,3.36698598]
[1746414036331,7.40828598,144.78,144.71,6.9096]
[1746414037038,7.40828598,144.78,144.72,6.9093]
[1746414037537,6.9084,144.75,144.72,6.9093]
[1746414039134,6.9078,144.76,144.73,6.9089]
[1746414041136,7.40828598,144.78,144.71,24.36]
[1746414041337,3.36698598,144.76,144.71,24.36]
[1746414041638,6.9088,144.74,144.71,24.36]
[1746414041839,6.9088,144.74,144.71,31.27]
[1746414042338,6.9082,144.75,144.71,27.72698598]
[1746414043140,10.27478598,144.76,144.71,27.72698598]
[1746414043334,6.9078,144.76,144.71,27.72698598]
[1746414043837,6.9078,144.76,144.72,6.9093]
[1746414045344,6.9078,144.76,144.73,6.909]
[1746414045942,6.9078,144.76,144.72,6.9092]
[1746414049039,6.9078,144.76,144.73,6.9089]
[1746414050848,6.9078,144.76,144.72,6.9093]
[1746414051145,6.9084,144.75,144.71,24.36]
[1746414052249,6.9084,144.75,144.72,6.9094]
[1746414053547,6.9078,144.76,144.72,6.9094]
[1746414053942,4.0413,144.78,144.72,6.9094]
[1746414055647,6.9081,144.75,144.72,6.9094]
[1746414057652,6.9078,144.76,144.73,6.909]
[1746414057955,4.0413,144.78,144.71,24.36]
[1746414058351,6.9076,144.76,144.72,6.9091]
[1746414059055,6.9082,144.75,144.72,6.9091]
[1746414065657,6.9082,144.75,144.71,31.2697]
[1746414065857,6.9089,144.74,144.71,24.36]
[1746414066755,9.30364895,144.78,144.68,24.36]
[1746414067159,5.26234895,144.75,144.68,24.36]
[1746414067455,26.5027,144.74,144.68,24.36]
[1746414067854,29.8721997,144.74,144.68,27.7294997]
[1746414068056,4.0413,144.78,144.68,27.7294997]
[1746414068057,3.3694997,144.76,144.7,3.3694997]
[1746414069257,6.9088,144.74,144.7,10.2796997]
[1746414072858,6.9088,144.74,144.71,6.9099]
[1746414073457,6.9083,144.75,144.71,6.9099]
[1746414074460,6.9086,144.74,144.71,6.9099]
[1746414074659,3.3694997,144.76,144.71,6.9099]
[1746414075058,6.9083,144.75,144.71,6.9099]
[1746414075957,6.9086,144.74,144.71,6.9099]
[1746414076661,6.9086,144.74,144.7,10.2797997]
[1746414077656,3.3694997,144.76,144.68,24.36]
[1746414077861,3.3694997,144.74,144.68,27.7294997]
[1746414078360,6.9098,144.72,144.69,6.9106]
[1746414080263,3.3694997,144.74,144.68,34.6404997]
[1746414080462,24.36,144.77,144.68,27.7294997]
[1746414080660,3.3694997,144.74,144.68,27.7294997]
[1746414081262,6.9098,144.72,144.69,6.9106]
[1746414081465,3.3694997,144.74,144.68,27.7294997]
[1746414081859,3.3694997,144.74,144.68,34.6406997]
[1746414082158,3.3694997,144.74,144.68,27.7294997]
[1746414082464,6.91,144.72,144.68,34.6405997]
[1746414083966,6.91,144.72,144.69,6.9109]
[1746414085470,6.91,144.71,144.68,34.6406997]
[1746414085659,6.91,144.71,144.68,6.9112]
[1746414085858,6.91,144.71,144.67,24.36]
[1746414086781,6.91,144.71,144.68,6.9112]
[1746414087069,6.9095,144.73,144.68,3.3694997]
[1746414087268,3.3694997,144.74,144.68,3.3694997]
[1746414087471,3.3694997,144.74,144.69,6.9107]
[1746414088074,6.9091,144.73,144.7,6.9104]
[1746414088273,3.3694997,144.74,144.7,6.9104]
[1746414088876,6.9091,144.73,144.7,6.9104]
[1746414089174,3.3694997,144.74,144.69,6.9107]
[1746414089577,6.9095,144.72,144.69,6.9107]
[1746414091681,3.3694997,144.74,144.68,3.3694997]
[1746414091882,3.3694997,144.76,144.68,3.3694997]
[1746414092680,6.9093,144.73,144.7,6.9103]
[1746414094691,6.9087,144.74,144.7,6.9103]
[1746414095489,6.9092,144.73,144.7,6.9103]
[1746414096590,3.3694997,144.76,144.69,3.3694997]
[1746414096994,6.909,144.74,144.7,6.9102]
[1746414097184,3.3694997,144.76,144.69,3.3694997]
[1746414097591,6.9086,144.74,144.69,3.3694997]
[1746414098292,6.9086,144.74,144.71,6.9099]
[1746414098594,6.9091,144.73,144.69,3.3694997]
[1746414099192,3.3694997,144.74,144.69,3.3694997]
[1746414099992,6.9099,144.72,144.69,10.2801997]
[1746414103995,3.3694997,144.74,144.69,6.9107]
[1746414104602,6.9099,144.72,144.68,6.9112]
[1746414104995,2.0934,144.73,144.68,6.9112]
[1746414105595,6.9104,144.71,144.67,34.6411997]
[1746414105798,2.0934,144.73,144.67,34.6411997]
[1746414106095,4.0634,144.73,144.67,27.7294997]
[1746414106495,6.9103,144.71,144.68,6.9112]
[1746414106696,6.9103,144.71,144.67,27.7294997]
[1746414106898,4.0634,144.73,144.67,27.7294997]
[1746414107100,6.9099,144.72,144.68,6.911]
[1746414107496,6.9099,144.72,144.67,27.7294997]
[1746414107797,10.9727,144.73,144.69,6.9106]
[1746414111003,10.9727,144.73,144.7,6.9104]
[1746414113603,4.0634,144.73,144.67,27.7294997]
[1746414113905,3.3694997,144.72,144.67,24.36]
[1746414114305,3.3694997,144.72,144.68,6.9111]
[1746414114906,10.2792997,144.72,144.68,6.9111]
[1746414115104,3.3694997,144.72,144.68,6.9111]
[1746414115812,6.9101,144.71,144.68,6.9111]
[1746414116007,3.3694997,144.72,144.69,6.9109]
[1746414117210,10.2791997,144.72,144.69,6.9109]
[1746414117610,10.2791997,144.72,144.68,6.9112]
[1746414118112,6.9101,144.71,144.68,6.9112]
[1746414119813,10.2791997,144.72,144.68,6.9112]
[1746414121913,3.3694997,144.72,144.69,6.9109]
[1746414122311,10.2794997,144.72,144.69,6.9109]
[1746414122811,10.2794997,144.72,144.67,24.36]
[1746414122812,3.3694997,144.72,144.68,6.9113]
[1746414123410,3.3694997,144.72,144.67,24.36]
[1746414123611,3.3694997,144.72,144.66,6.9121]
[1746414124411,3.3694997,144.72,144.67,3.3694997]
[1746414124914,6.9101,144.71,144.68,6.9111]
[1746414125106,4.0634,144.73,144.67,3.3694997]
[1746414125513,6.9098,144.72,144.69,6.9109]
[1746414126521,6.9098,144.72,144.68,6.9112]
[1746414127415,6.9092,144.73,144.69,3.3694997]
[1746414127611,24.34,144.75,144.69,3.3694997]
[1746414127808,24.34,144.75,144.71,3.3694997]
[1746414128009,5.4110997,144.77,144.71,3.3694997]
[1746414128316,6.9082,144.75,144.72,6.9094]
[1746414128611,2.0416,144.77,144.73,3.3694997]
[1746414128815,6.9063,144.79,144.75,3.3694997]
[1746414129017,6.9063,144.79,144.75,27.7094997]
[1746414130015,6.9063,144.79,144.76,6.9076]
[1746414130205,6.9058,144.8,144.77,3.3694997]
[1746414131318,6.9058,144.8,144.77,10.2763997]
[1746414131512,6.9054,144.81,144.77,10.2763997]
[1746414133022,33.2197,144.82,144.78,6.9066]
[1746414133320,6.9049,144.82,144.77,3.3694997]
[1746414133716,10.9711,144.84,144.79,3.3694997]
[1746414133918,6.9041,144.84,144.79,3.3694997]
[1746414134219,6.9041,144.84,144.79,27.7094997]
[1746414134623,34.6128997,144.85,144.79,27.7094997]
[1746414134819,3.3694997,144.85,144.82,6.9047]
[1746414135223,5.4108997,144.87,144.82,6.9047]
[1746414135719,2.0414,144.87,144.82,6.9047]
[1746414135919,6.903,144.86,144.82,6.9047]
[1746414137322,8.9439,144.87,144.79,24.34]
[1746414137517,2.0414,144.87,144.79,24.34]
[1746414137719,24.32,144.91,144.81,5.25534404]
[1746414137923,24.32,144.91,144.82,1.9697]
[1746414138231,6.9018,144.89,144.85,6.9033]
[1746414138429,24.32,144.91,144.83,24.32]
[1746414138824,6.9014,144.89,144.85,6.9032]
[1746414139731,6.9008,144.91,144.86,6.9025]
[1746414139923,6.9008,144.91,144.87,24.32]
[1746414140424,6.9008,144.91,144.87,31.222]
[1746414141632,6.9008,144.91,144.88,6.9018]
[1746414142031,6.9008,144.91,144.87,24.32]
[1746414142232,6.9008,144.91,144.87,31.2222]
[1746414143138,6.8999,144.93,144.89,6.9013]
[1746414143337,26.418,144.96,144.87,24.32]
[1746414143638,6.8995,144.94,144.87,24.32]
[1746414143935,6.8995,144.94,144.87,29.57534404]
[1746414144135,6.8995,144.94,144.88,2.0096]
[1746414144329,6.8995,144.94,144.9,6.9008]
[1746414144525,6.8995,144.94,144.9,31.2208]
[1746414145237,6.8995,144.93,144.9,31.2208]
[1746414146837,6.8992,144.94,144.91,6.9004]
[1746414147036,4.239,144.98,144.9,24.32]
[1746414147338,6.8976,144.97,144.93,6.8992]
[1746414147731,2.0702,145.01,144.94,24.32]
[1746414147942,6.8973,144.98,144.94,31.2187]
[1746414148237,6.8973,144.98,144.94,24.32]
[1746414148433,6.897,144.99,144.95,6.8985]
[1746414148743,2.0702,145.01,144.94,24.32]
[1746414148938,6.8963,145.0,144.96,6.8978]
[1746414149435,6.8972,144.98,144.94,24.32]
[1746414149737,2.0702,145.01,144.94,24.32]
[1746414150038,6.8972,144.98,144.95,6.8985]
[1746414150238,6.8972,144.98,144.94,24.32]
[1746414150841,6.8972,144.98,144.94,31.2188]
[1746414153545,6.8976,144.97,144.94,31.2188]
[1746414159649,6.8973,144.98,144.94,31.2188]
[1746414159847,2.0702,145.01,144.95,6.8985]
[1746414160044,2.0702,145.01,144.94,24.32]
[1746414160238,6.8964,145.0,144.94,26.3502]
[1746414160550,6.8964,145.0,144.96,6.8978]
[1746414161150,6.8964,145.0,144.97,6.8975]
[1746414161347,6.8964,145.0,144.98,24.28]
[1746414162645,6.8959,145.01,144.98,24.28]
[1746414162843,1.9886,145.03,144.98,24.28]
[1746414163348,6.8961,145.01,144.98,24.28]
[1746414164351,9.39734404,145.07,144.98,24.28]
[1746414164647,11.41264404,145.07,144.98,24.28]
[1746414165853,6.8951,145.03,144.99,6.8964]
[1746414166347,6.1573,145.07,144.98,24.28]
[1746414167851,6.8943,145.04,145.01,6.8954]
[1746414168251,6.1573,145.07,145.02,24.28]
[1746414169257,6.894,145.05,145.02,31.1751]
[1746414170052,6.8943,145.04,145.02,24.28]
[1746414176051,24.28,145.11,145.02,24.28]
[1746414176460,6.8931,145.07,145.03,6.8945]
[1746414176662,24.28,145.11,145.03,6.8945]
[1746414176962,6.8926,145.08,145.03,6.8945]
[1746414177154,6.8926,145.08,145.04,6.8942]
[1746414177955,6.8919,145.09,145.05,6.8935]
[1746414178363,6.8919,145.09,145.06,6.8933]
[1746414179161,6.8916,145.1,145.07,6.8927]
[1746414180261,24.28,145.11,145.02,29.53534404]
[1746414180664,6.8925,145.08,145.05,6.8938]
[1746414184074,24.28,145.11,145.06,6.893]
[1746414184371,2.1378,145.12,145.06,24.28]
[1746414185172,1.9956,145.16,145.08,5.25534404]
[1746414185367,26.2832,145.17,145.08,5.25534404]
[1746414185567,6.8892,145.15,145.11,6.8906]
[1746414185779,6.8892,145.15,145.11,31.1706]
[1746414186070,26.2832,145.17,145.12,6.8904]
[1746414186071,6.8887,145.16,145.12,6.8904]
[1746414186775,6.8891,145.15,145.12,6.8904]
[1746414187167,6.8891,145.15,145.11,31.1708]
[1746414188567,6.8898,145.14,145.11,24.28]
[1746414188773,24.26,145.16,145.06,545.9]
[1746414188976,24.26,145.16,145.02,26.2237]
[1746414188977,5.25534404,145.11,145.02,26.2237]
[1746414189168,3.9609,145.1,145.03,31.1546]
[1746414189369,6.0722,145.1,145.03,31.1546]
[1746414189673,6.8933,145.07,145.03,31.1546]
[1746414189974,6.0722,145.1,145.03,31.1546]
[1746414190372,6.8922,145.09,145.03,31.1546]
[1746414191169,24.26,145.16,145.03,29.51534404]
[1746414191370,4.2316,145.15,145.03,29.51534404]
[1746414191870,6.8902,145.13,145.08,6.8923]
[1746414192072,4.2316,145.15,145.08,6.8923]
[1746414192272,6.8898,145.14,145.09,6.8917]
[1746414192571,4.2316,145.15,145.07,24.26]
[1746414192775,6.8895,145.14,145.09,6.8916]
[1746414193073,6.8895,145.14,145.07,24.26]
[1746414193373,11.1208,145.15,145.11,6.8909]
[1746414193669,4.2316,145.15,145.07,24.26]
[1746414194074,6.8895,145.14,145.09,6.8917]
[1746414194266,6.8895,145.14,145.07,24.26]
[1746414194574,6.8895,145.14,145.1,6.8911]
[1746414194775,11.1207,145.15,145.07,24.26]
[1746414195074,4.2316,145.15,145.07,24.26]
[1746414195263,4.2316,145.15,145.11,6.8907]
[1746414196075,11.1208,145.15,145.11,6.8907]
[1746414197973,4.2316,145.15,145.07,24.26]
[1746414198572,4.2316,145.15,145.07,31.1525]
[1746414198775,4.2316,145.15,145.07,24.26]
[1746414198975,6.8908,145.12,145.08,6.8921]
[1746414199475,4.2316,145.15,145.07,24.26]
[1746414200279,6.8899,145.14,145.1,6.891]
[1746414201279,4.2316,145.15,145.09,6.8918]
[1746414201580,4.2316,145.15,145.07,24.26]
[1746414201777,6.8898,145.14,145.1,6.8914]
[1746414201975,6.8898,145.14,145.07,24.26]
[1746414202278,6.8898,145.14,145.1,6.891]
[1746414202879,6.8901,145.13,145.1,6.891]
[1746414206271,6.8897,145.14,145.1,6.891]
[1746414207580,6.8902,145.13,145.1,6.891]
[1746414207776,2.1203,145.15,145.1,6.891]
[1746414208281,6.8898,145.14,145.1,6.891]
[1746414208885,6.8901,145.13,145.1,6.891]
[1746414209282,2.1203,145.15,145.1,6.891]
[1746414209481,6.8896,145.14,145.11,6.8907]
[1746414210384,6.89,145.13,145.1,6.8913]
[1746414210582,2.1203,145.15,145.08,1.9717]
[1746414210882,6.8904,145.13,145.09,6.8918]
[1746414212084,6.8904,145.13,145.1,6.8913]
[1746414212680,6.8904,145.13,145.09,6.8917]
[1746414212886,2.1203,145.15,145.09,6.8917]
[1746414213086,2.1203,145.15,145.08,1.9717]
[1746414213779,2.1203,145.15,145.1,6.8911]
[1746414214292,2.1203,145.15,145.08,1.9717]
[1746414214487,6.8907,145.12,145.09,6.8917]
[1746414214989,6.8907,145.12,145.08,6.8922]
[1746414215188,6.891,145.11,145.08,6.8922]
[1746414215487,2.1203,145.15,145.08,6.8922]
[1746414215691,6.8907,145.12,145.08,6.8922]
[1746414216084,2.1203,145.15,145.07,24.26]
[1746414216387,6.8897,145.14,145.07,24.26]
[1746414216588,2.1203,145.15,145.09,6.8917]
[1746414217188,6.8902,145.13,145.1,6.8913]
[1746414218990,6.8902,145.13,145.09,6.8917]
[1746414220693,6.8902,145.13,145.1,6.8914]
[1746414221096,6.8896,145.14,145.11,6.8907]
[1746414221287,1.9572,145.17,145.11,24.24]
[1746414222891,6.89,145.13,145.11,24.24]
[1746414224192,6.8897,145.14,145.11,24.24]
[1746414225195,1.9572,145.17,145.11,24.24]
[1746414225895,1.9572,145.17,145.11,31.1309]
[1746414226495,6.8897,145.14,145.11,31.1309]
[1746414226696,1.9572,145.17,145.11,24.24]
[1746414228297,1.9794,145.16,145.11,24.24]
[1746414228901,6.8904,145.13,145.11,24.24]
[1746414229708,6.8905,145.12,145.11,24.24]
[1746414230008,6.8905,145.12,145.09,6.8917]
[1746414233906,6.8905,145.12,145.08,31.1322]
[1746414235705,26.2194,145.16,145.08,31.1322]
[1746414235910,26.2194,145.16,145.08,24.24]
[1746414237115,5.23599593,145.14,145.08,24.24]
[1746414237306,6.8919,145.1,145.08,24.24]
[1746414239414,6.8919,145.1,145.06,6.893]
[1746414241417,6.8919,145.1,145.05,26.3005]
[1746414241418,5.23599593,145.11,145.01,24.24]
[1746414241618,1.9567,145.09,144.99,24.24]
[1746414241823,5.23599593,145.08,145.0,6.8958]
[1746414242118,5.23599593,145.08,144.99,24.24]
[1746414242319,5.23599593,145.08,144.97,545.72]
[1746414242617,5.23599593,145.05,144.96,26.2497]
[1746414242819,26.2452,145.04,144.96,26.2497]
[1746414243011,6.8965,145.0,144.96,26.2497]
[1746414243208,26.2452,145.04,144.96,24.24]
[1746414243209,1.9567,145.03,144.96,24.24]
[1746414243913,6.8964,145.0,144.96,24.24]
[1746414244120,6.8964,145.0,144.96,31.1379]
[1746414244920,6.8958,145.01,144.97,6.8975]
[1746414245314,1.9567,145.03,144.96,24.24]
[1746414245518,6.895,145.03,144.98,6.8968]
[1746414245719,6.895,145.03,144.96,24.24]
[1746414245922,24.24,145.04,144.96,24.24]
[1746414246121,24.24,145.04,144.98,5.23599593]
[1746414246418,26.2598,145.07,144.98,5.23599593]
[1746414246719,6.8941,145.05,145.0,6.8957]
[1746414247023,26.2598,145.07,145.0,6.8957]
[1746414247215,6.8943,145.04,145.0,6.8957]
[1746414248922,26.2598,145.07,144.98,6.8967]
[1746414249218,26.2598,145.07,144.96,24.24]